bitfinex/quotes_SOLUSD_20250710
["timestamp","ask_amount","ask_price","bid_price","bid_amount"]
[1752113959896,0.14216157,158.82,158.81,0.03]
[1752113960601,6.43859778,158.82,158.81,0.03]
[1752113964299,0.14216157,158.82,158.81,0.03]
[1752113970130,1.5945,158.85,158.81,0.03]
[1752113970310,6.56273326,158.86,158.84,6.27918351]
[1752113970519,1e-08,158.87,158.85,6.27918351]
[1752113970700,1e-08,158.87,158.86,6.27918351]
[1752113973016,1e-08,158.87,158.83,6.29603979]
[1752113973324,1e-08,158.87,158.84,6.27918351]
[1752113973617,18.64964887,158.87,158.84,6.27918351]
[1752113973798,0.14216157,158.86,158.84,6.27918351]
[1752113977506,0.14216157,158.86,158.82,6.2963991]
[1752113977706,0.14216157,158.86,158.84,6.27918351]
[1752113978226,6.43703249,158.86,158.83,6.77918351]
[1752113978424,0.14216157,158.86,158.83,6.77918351]
[1752113978728,0.14216157,158.86,158.83,0.5]
[1752113978912,0.14216157,158.86,158.84,6.27918351]
[1752113979114,0.14216157,158.86,158.83,0.5]
[1752113979326,0.14216157,158.86,158.84,6.27918351]
[1752113982712,6.43701531,158.86,158.83,6.77918351]
[1752113983736,0.14216157,158.86,158.83,6.77918351]
[1752113984934,0.14216157,158.86,158.84,6.27918351]
[1752113985233,0.14216157,158.86,158.83,6.77918351]
[1752113988131,6.4370148,158.86,158.83,6.77918351]
[1752113988737,0.14216157,158.86,158.83,6.77918351]
[1752113990723,6.4370397,158.86,158.83,0.5]
[1752113990925,25.07099394,158.84,158.83,0.5]
[1752113991146,25.07099394,158.84,158.81,0.03]
[1752113991320,18.79181043,158.84,158.81,0.03]
[1752113991643,25.07099394,158.84,158.81,0.03]
[1752113992120,6.29603979,158.83,158.81,0.03]
[1752113992720,6.42134508,158.82,158.81,0.03]
[1752113993019,0.14216157,158.82,158.81,0.03]
[1752113994145,25.08824664,158.82,158.81,0.03]
[1752113994320,31.36743015,158.82,158.81,0.03]
[1752113994642,37.8886798,158.82,158.81,0.03]
[1752113995224,39.5084798,158.82,158.81,0.03]
[1752113995526,18.79181043,158.78,158.75,0.03]
[1752113995728,25.07099394,158.76,158.75,0.03]
[1752113996047,31.36980976,158.76,158.75,0.03]
[1752113999731,50.86980976,158.76,158.75,0.03]
[1752114000060,52.41650976,158.76,158.75,0.03]
[1752114003326,198.81650976,158.76,158.75,0.03]
[1752114003526,18.79181043,158.75,158.74,0.03]
[1752114003745,25.07099394,158.75,158.74,0.03]
[1752114004743,31.37020653,158.75,158.74,0.03]
[1752114006143,44.79181043,158.72,158.71,1e-08]
[1752114006354,216.97099394,158.72,158.71,1e-08]
[1752114006941,223.27139716,158.72,158.71,1e-08]
[1752114010231,24.92883237,158.75,158.71,6.27918352]
[1752114010537,6.29881582,158.76,158.72,6.27918351]
[1752114010737,6.29881582,158.76,158.73,6.27918351]
[1752114010937,6.29881582,158.76,158.72,6.27918351]
[1752114011140,18.79181043,158.75,158.72,6.27918351]
[1752114011437,25.09115256,158.75,158.72,6.27918351]
[1752114011949,24.94899099,158.75,158.72,6.27918351]
[1752114012154,0.14216157,158.74,158.72,6.27918351]
[1752114014450,0.14216157,158.74,158.72,6.30918351]
[1752114017655,162.20306033,158.81,158.73,6.27918351]
[1752114017854,162.20306033,158.81,158.72,0.03]
[1752114017855,18.64964886,158.77,158.72,0.03]
[1752114018070,0.14216157,158.74,158.72,0.03]
[1752114019064,18.64964886,158.73,158.72,0.03]
[1752114019273,24.92883237,158.73,158.72,0.03]
[1752114019442,18.64964886,158.73,158.72,0.03]
[1752114020272,24.94965516,158.73,158.72,0.03]
[1752114021461,19.5,158.75,158.72,0.03]
[1752114021760,18.64964886,158.75,158.72,6.30918351]
[1752114021963,24.94890006,158.75,158.72,0.03]
[1752114022164,6.44188383,158.74,158.72,0.03]
[1752114026986,0.14216157,158.74,158.72,0.03]
[1752114030475,6.44179286,158.74,158.72,0.03]
[1752114031163,0.14216157,158.74,158.72,0.03]
[1752114032274,6.44183303,158.74,158.72,0.03]
[1752114032677,0.14216157,158.74,158.72,0.03]
[1752114036790,0.20216157,158.74,158.72,0.03]
[1752114038062,0.06,158.74,158.73,6.27918351]
[1752114038677,0.06,158.74,158.73,12.57918981]
[1752114048581,0.06,158.81,158.73,28.32920556]
[1752114048785,0.06,158.81,158.8,6.27918351]
[1752114050174,0.06,158.81,158.8,12.57641272]
[1752114050777,0.06,158.81,158.8,6.27918351]
[1752114052189,0.06,158.81,158.79,19.46]
[1752114052382,0.06,158.81,158.8,6.27918351]
[1752114053396,0.06,158.81,158.8,12.55836702]
[1752114053973,0.06,158.81,158.8,18.85559623]
[1752114054680,1e-08,158.87,158.8,34.59866927]
[1752114054881,1e-08,158.87,158.86,6.27918351]
[1752114056403,1e-08,158.87,158.86,12.57403432]
[1752114062896,0.06,158.9,158.89,26.0]
[1752114063102,0.1,158.94,158.89,51.71918351]
[1752114063304,0.1,158.94,158.89,45.44]
[1752114063478,0.1,158.94,158.93,6.27918351]
[1752114063678,0.1,158.94,158.93,19.44]
[1752114063899,0.1,158.94,158.93,25.71918351]
[1752114065697,0.1,158.94,158.93,26.71918351]
[1752114066194,12.6708659,158.94,158.91,19.44]
[1752114066416,6.39168239,158.94,158.91,25.71918351]
[1752114066622,6.39168239,158.94,158.91,19.44]
[1752114066803,12.6708659,158.94,158.91,19.44]
[1752114067118,12.6708659,158.94,158.9,25.71918351]
[1752114067312,6.39168239,158.94,158.9,25.71918351]
[1752114067615,12.6708659,158.94,158.9,25.71918351]
[1752114068001,6.39168239,158.94,158.9,25.71918351]
[1752114068202,0.14216157,158.93,158.9,19.44]
[1752114069114,6.43449558,158.93,158.9,25.71918351]
[1752114069300,6.39181634,158.94,158.92,6.27918351]
[1752114069507,6.39181634,158.94,158.9,19.44]
[1752114069814,0.24216157,158.94,158.92,6.27918351]
[1752114070293,0.24216157,158.94,158.9,19.44]
[1752114070294,0.1,158.94,158.93,6.27918351]
[1752114070499,0.1,158.94,158.93,25.69918351]
[1752114071306,0.1,158.94,158.93,31.99126178]
[1752114071498,0.1,158.94,158.93,25.69918351]
[1752114077024,0.1,158.94,158.93,19.42]
[1752114077225,0.1,158.94,158.93,31.99126178]
[1752114077420,0.1,158.94,158.93,25.69918351]
[1752114078227,0.1,158.94,158.93,31.99126178]
[1752114078540,0.1,158.94,158.93,25.69918351]
[1752114079223,0.1,158.94,158.91,26.0]
[1752114079428,0.1,158.94,158.92,25.69918351]
[1752114079725,0.1,158.94,158.92,19.42]
[1752114079936,0.1,158.94,158.93,6.27918351]
[1752114082302,0.1,158.94,158.93,19.42]
[1752114082501,0.1,158.94,158.93,25.69918351]
[1752114085926,0.1,158.94,158.93,19.42]
[1752114086331,0.1,158.94,158.93,25.69918351]
[1752114088407,0.1,158.94,158.91,26.0]
[1752114088610,0.1,158.94,158.93,6.27918351]
[1752114088829,0.1,158.94,158.93,25.69918351]
[1752114090835,0.1,158.94,158.93,31.99126178]
[1752114095224,0.1,158.94,158.93,25.67918351]
[1752114096436,0.1,158.94,158.93,31.97126178]
[1752114096637,0.1,158.94,158.93,25.67918351]
[1752114097042,0.1,158.94,158.93,31.97126178]
[1752114098130,0.1,158.94,158.93,25.67918351]
[1752114098744,0.1,158.94,158.93,6.27918351]
[1752114098922,0.1,158.94,158.93,25.67918351]
[1752114099123,0.1,158.94,158.93,19.4]
[1752114099329,0.1,158.94,158.93,25.67918351]
[1752114100345,0.1,158.94,158.93,31.97126178]
[1752114101440,0.1,158.94,158.93,25.67918351]
[1752114104557,0.1,158.94,158.93,6.27918351]
[1752114104765,0.1,158.94,158.93,25.67918351]
[1752114105825,0.1,158.94,158.93,31.97126178]
[1752114107129,0.1,158.94,158.93,25.67918351]
[1752114107746,0.1,158.94,158.93,31.97126178]
[1752114108158,0.1,158.94,158.93,6.27918351]
[1752114108366,0.1,158.94,158.93,25.67918351]
[1752114109244,0.1,158.94,158.93,31.97126178]
[1752114111164,0.1,158.94,158.93,51.67918351]
[1752114113136,0.1,158.94,158.93,32.27918351]
[1752114113445,0.1,158.94,158.93,51.67918351]
[1752114114261,0.1,158.94,158.93,32.27918351]
[1752114114467,0.1,158.94,158.93,51.67918351]
[1752114115162,0.1,158.94,158.93,26.0]
[1752114115372,0.1,158.94,158.93,51.67918351]
[1752114117368,0.1,158.94,158.93,57.97126178]
[1752114118344,0.1,158.94,158.93,51.67918351]
[1752114119099,0.1,158.94,158.93,51.65918351]
[1752114122879,0.1,158.94,158.93,26.0]
[1752114123082,0.1,158.94,158.93,51.65918351]
[1752114124870,0.1,158.94,158.93,45.38]
[1752114125077,0.1,158.94,158.93,51.65918351]
[1752114126078,6.39171119,158.94,158.92,6.27918351]
[1752114126277,6.39171119,158.94,158.93,19.38]
[1752114127283,0.1,158.94,158.93,25.65918351]
[1752114129081,0.1,158.94,158.93,6.27918351]
[1752114129272,0.1,158.94,158.93,19.38]
[1752114129462,0.1,158.94,158.93,25.65918351]
[1752114131384,6.39168239,158.94,158.9,0.03]
[1752114131557,0.14216157,158.92,158.9,0.03]
[1752114131762,6.42134508,158.92,158.9,0.03]
[1752114132164,6.42134508,158.91,158.9,0.03]
[1752114132794,0.14216157,158.91,158.9,0.03]
[1752114133085,6.65157275,158.92,158.9,6.30918351]
[1752114133286,6.39168239,158.94,158.91,6.27918351]
[1752114133467,6.39168239,158.94,158.92,6.27918351]
[1752114133976,0.1,158.94,158.92,6.27918351]
[1752114134171,0.1,158.94,158.93,25.65918351]
[1752114135568,0.1,158.94,158.93,19.38]
[1752114135768,0.1,158.94,158.93,25.65918351]
[1752114137498,0.1,158.94,158.93,31.95126178]
[1752114139808,0.1,158.94,158.93,25.67207827]
[1752114139984,0.1,158.94,158.93,25.65918351]
[1752114142909,0.1,158.94,158.93,19.38]
[1752114143121,0.1,158.94,158.93,25.65918351]
[1752114145006,0.1,158.94,158.93,31.95126178]
[1752114148685,0.1,158.94,158.93,25.65918351]
[1752114149311,0.1,158.94,158.93,19.38]
[1752114149612,0.1,158.94,158.93,25.65918351]
[1752114150110,0.1,158.94,158.93,31.95126178]
[1752114150494,1.0,159.0,158.96,26.0]
[1752114150693,1.0,159.0,158.99,6.27918351]
[1752114150902,1.0,159.0,158.99,25.63918351]
[1752114151390,1.0,159.0,158.99,57.92888726]
[1752114152409,1.0,159.0,158.99,31.92888726]
[1752114154020,1.0,159.0,158.99,50.57853612]
[1752114154194,0.1,159.03,159.02,26.0]
[1752114154393,0.1,159.03,159.02,45.36]
[1752114154596,0.1,159.03,159.02,51.63918351]
[1752114155714,0.1,159.03,159.02,57.92770067]
[1752114157499,0.1,159.03,159.02,51.63918351]
[1752114158316,0.1,159.03,159.02,57.92770067]
[1752114159807,0.1,159.03,159.02,51.63918351]
[1752114160000,0.1,159.03,159.02,51.64851716]
[1752114160219,0.1,159.03,159.02,57.92770067]
[1752114160914,0.1,159.03,159.02,51.63918351]
[1752114161419,0.1,159.03,159.02,32.27918351]
[1752114161722,0.1,159.03,159.02,6.27918351]
[1752114162017,0.1,159.03,159.02,25.63918351]
[1752114162510,0.1,159.03,159.02,31.92770067]
[1752114164917,0.1,159.03,159.02,44.45268418]
[1752114165420,0.1,159.03,159.02,38.17350067]
[1752114166123,0.1,159.03,159.02,31.92770067]
[1752114166317,0.1,159.03,159.02,25.63918351]
[1752114166924,0.1,159.03,158.99,6.2895558]
[1752114167220,0.1,159.03,159.02,6.27918351]
[1752114167407,0.1,159.03,159.02,25.63918351]
[1752114167597,0.1,159.03,159.02,6.27918351]
[1752114167796,0.1,159.03,159.02,25.61918351]
[1752114169426,6.38812173,159.03,159.02,25.61918351]
[1752114169622,0.1,159.03,159.02,19.34]
[1752114170021,6.38812173,159.03,159.02,19.34]
[1752114170927,6.38812173,159.03,159.01,6.27918351]
[1752114171104,6.38812173,159.03,159.02,19.34]
[1752114172425,6.38812173,159.03,159.01,25.61918351]
[1752114173632,6.38812173,159.03,159.02,6.27918351]
[1752114173826,6.38812173,159.03,159.01,19.34]
[1752114174126,6.38812173,159.03,159.02,6.27918351]
[1752114174729,6.38812173,159.03,159.01,19.34]
[1752114174930,6.38812173,159.03,159.01,25.61918351]
[1752114175721,6.38812173,159.03,159.01,6.27918351]
[1752114176025,6.38812173,159.03,159.01,25.61918351]
[1752114176231,6.38812173,159.03,158.98,32.28997614]
[1752114176414,6.38812173,159.03,159.01,6.27918351]
[1752114176817,6.38812173,159.03,158.99,6.27918351]
[1752114177020,12.66730524,159.03,158.99,25.61918351]
[1752114177232,12.66730524,159.03,158.99,6.27918351]
[1752114177610,0.14216157,159.02,158.98,6.27918351]
[1752114177811,0.14216157,159.02,158.98,25.61918351]
[1752114178035,6.42134508,159.02,158.97,26.0]
[1752114178245,6.42134508,159.02,158.97,51.61918351]
[1752114178741,6.28891264,159.01,158.97,51.61918351]
[1752114179643,6.28891264,159.01,158.98,6.27918351]
[1752114179846,6.28891264,159.01,158.97,45.34]
[1752114180030,6.28891264,159.01,158.97,51.61918351]
[1752114180233,6.28891264,159.01,158.98,6.27918351]
[1752114182221,0.1,159.03,159.0,6.27918351]
[1752114182422,0.1,159.03,159.02,6.27918351]
[1752114182620,0.1,159.03,159.02,25.61918351]
[1752114184748,0.1,159.03,159.02,19.34]
[1752114185049,0.1,159.03,159.02,25.61918351]
[1752114187841,6.38812173,159.03,159.02,25.61918351]
[1752114188142,0.1,159.03,159.02,25.61918351]
[1752114191150,6.38812173,159.03,159.02,19.34]
[1752114191345,0.1,159.03,159.02,25.61918351]
[1752114192857,12.66730524,159.03,158.97,0.03]
[1752114193148,6.28891264,159.01,158.97,25.64918351]
[1752114194345,6.28891264,159.01,158.97,6.30918351]
[1752114197535,6.28891264,159.01,158.98,6.27918351]
[1752114197853,12.56809615,159.01,158.97,6.30918351]
[1752114198151,6.28891264,159.01,158.97,6.30918351]
[1752114198656,6.28891264,159.01,158.97,0.03]
[1752114198838,6.42134508,159.0,158.97,0.03]
[1752114199036,6.89702784,159.0,158.97,6.30918351]
[1752114199245,0.14216157,159.0,158.97,6.30918351]
[1752114200257,6.28970375,158.99,158.97,6.30918351]
[1752114203253,6.28970375,158.99,158.97,0.03]
[1752114204157,6.28970375,158.99,158.97,6.30918351]
[1752114205159,6.28970375,158.99,158.97,0.03]
[1752114206954,6.43226095,158.98,158.97,0.03]
[1752114209679,6.28930817,159.0,158.97,6.30918351]
[1752114209846,6.28930817,159.0,158.99,6.27918351]
[1752114210045,6.28930817,159.0,158.97,0.03]
[1752114210453,12.56849168,159.0,158.97,0.03]
[1752114210766,0.14216157,158.99,158.97,0.03]
[1752114212355,6.29009938,158.98,158.97,0.03]
[1752114213546,0.20216157,159.01,158.97,6.30918351]
[1752114213855,0.06,159.01,158.99,6.27918351]
[1752114214055,0.20216157,159.01,158.99,6.27918351]
[1752114214559,6.34907493,159.01,159.0,6.27918351]
[1752114216272,0.06,159.01,159.0,6.27918351]
[1752114222879,0.06,159.01,158.99,6.27918351]
[1752114223055,0.06,159.01,158.98,6.27918351]
[1752114223252,18.85181043,159.01,158.97,0.03]
[1752114223565,6.29009938,158.98,158.97,0.03]
[1752114225071,6.43226095,158.98,158.97,0.03]
[1752114227671,18.70964886,159.01,158.97,6.30918351]
[1752114227956,24.99894108,159.01,158.99,6.27918351]
[1752114228166,6.42134508,159.0,158.97,0.03]
[1752114228366,0.14216157,158.98,158.97,0.03]
[1752114229286,6.28970375,158.99,158.97,0.03]
[1752114230670,12.56888726,158.99,158.97,0.03]
[1752114230866,0.14216157,158.98,158.97,0.03]
[1752114231890,6.43226095,158.98,158.97,0.03]
[1752114235684,0.06,159.0,158.97,6.30918351]
[1752114235895,0.06,159.0,158.99,6.27918351]
[1752114240982,0.06,159.0,158.97,19.35]
[1752114241174,0.06,159.0,158.98,6.27918351]
[1752114242275,0.06,159.0,158.99,6.27918351]
[1752114243380,0.06,159.0,158.99,26.0]
[1752114243564,0.06,159.0,158.99,32.27918351]
[1752114245189,0.06,159.0,158.99,26.0]
[1752114245398,0.06,159.0,158.99,32.27918351]
[1752114245965,0.06,159.0,158.99,6.27918351]
[1752114246588,0.06,159.0,158.98,6.27918351]
[1752114247280,0.06,159.0,158.99,6.27918351]
[1752114247484,0.06,159.0,158.97,6.30918351]
[1752114248469,6.29009938,158.98,158.97,0.03]
[1752114250971,0.14216157,158.99,158.97,0.03]
[1752114250972,6.43201344,158.99,158.97,0.03]
[1752114251166,6.34947092,159.0,158.97,6.30918351]
[1752114253296,6.34947092,159.0,158.98,6.27918351]
[1752114254682,0.06,159.0,158.99,6.27918351]
[1752114255675,0.06,159.0,158.98,19.32]
[1752114255879,0.06,159.0,158.99,6.27918351]
[1752114256095,0.06,159.0,158.99,12.56888726]
[1752114256274,0.06,159.0,158.99,6.27918351]
[1752114260802,0.06,159.0,158.98,19.32]
[1752114261101,0.06,159.0,158.99,6.27918351]
[1752114262493,0.06,159.0,158.99,25.59918351]
[1752114263097,0.06,159.0,158.99,19.32]
[1752114263284,0.06,159.0,158.99,25.59918351]
[1752114270110,0.06,159.0,158.99,19.32]
[1752114270315,0.06,159.0,158.99,25.59918351]
[1752114271824,0.06,159.0,158.99,19.32]
[1752114272000,0.06,159.0,158.99,25.59918351]
[1752114272898,0.06,159.0,158.99,19.32]
[1752114273091,0.06,159.0,158.97,0.03]
[1752114273292,0.06,159.0,158.98,51.57918351]
[1752114273707,0.06,159.0,158.99,6.27918351]
[1752114275097,0.06,159.0,158.98,26.0]
[1752114275398,0.06,159.0,158.98,51.57918351]
[1752114276825,0.06,159.0,158.98,45.3]
[1752114277008,0.06,159.0,158.98,51.57918351]
[1752114277604,0.06,159.0,158.98,6.27918351]
[1752114277928,0.06,159.0,158.98,19.3]
[1752114278517,0.06,159.0,158.97,6.30918351]
[1752114278715,0.06,159.0,158.98,19.3]
[1752114278927,6.34930817,159.0,158.97,0.03]
[1752114279222,6.42134508,158.99,158.97,0.03]
[1752114280232,0.14216157,158.98,158.97,0.03]
[1752114280894,6.43226095,158.98,158.97,0.03]
[1752114283523,15.78327044,159.0,158.97,0.03]
[1752114283524,0.06,159.0,158.97,0.03]
[1752114283825,6.34947626,159.0,158.98,6.27918351]
[1752114284917,0.06,159.0,158.98,6.27918351]
[1752114287027,0.06,159.0,158.97,19.33]
[1752114287413,0.06,159.0,158.98,6.27918351]
[1752114289732,0.06,159.0,158.99,6.27918351]
[1752114291515,0.06,159.0,158.97,25.62035006]
[1752114291715,0.06,159.0,158.99,6.27918351]
[1752114298444,0.06,159.0,158.97,25.62035006]
[1752114298740,0.06,159.0,158.99,6.27918351]
[1752114300463,0.06,159.0,158.98,6.27918351]
[1752114300647,0.06,159.0,158.97,25.60918351]
[1752114301434,6.34930817,159.0,158.97,0.03]
[1752114305661,12.62849168,159.0,158.97,0.03]
[1752114305850,0.06,159.0,158.97,6.30918351]
[1752114312953,0.06,159.0,158.97,4.04289267]
[1752114313149,0.06,159.0,158.97,0.03]
[1752114313543,6.75057942,159.0,158.97,0.03]
[1752114314566,6.75057942,159.0,158.97,4.04289267]
[1752114315162,6.28970375,158.99,158.97,4.04289267]
[1752114317569,6.7504634,159.0,158.98,4.01289267]
[1752114317770,0.06,159.0,158.99,4.01289267]
[1752114318868,0.06,159.0,158.99,6.26862036]
[1752114329789,0.06,159.0,158.97,6.32037602]
[1752114330090,0.06,159.0,158.99,6.26862036]
[1752114332811,0.06,159.0,158.99,25.54862036]
[1752114334876,0.06,159.0,158.99,31.83832411]
[1752114335913,1.2696472,159.05,159.04,12.53724072]
[1752114336209,1.2696472,159.05,159.04,51.58862036]
[1752114336375,1.2696472,159.05,159.04,29.09916439]
[1752114336572,1.2696472,159.05,159.04,32.26862036]
[1752114336773,1.2696472,159.05,159.04,45.46]
[1752114337181,1.2696472,159.05,159.04,19.46]
[1752114337499,7.55697822,159.05,159.01,19.46]
[1752114337681,6.85259587,159.04,159.01,19.46]
[1752114338588,13.14053671,159.04,159.01,19.46]
[1752114339398,19.40915707,159.04,158.99,25.72862036]
[1752114339705,12.98646749,159.03,158.98,6.26862036]
[1752114339885,12.98646749,159.03,158.98,25.72862036]
[1752114340085,12.98646749,159.03,158.98,51.74862036]
[1752114340692,6.28851716,159.02,158.99,0.03]
[1752114341977,6.28812173,159.03,158.99,0.03]
[1752114342179,19.27501041,159.03,158.99,0.03]
[1752114342481,12.55674209,159.03,158.99,0.03]
[1752114342791,6.69799268,159.02,158.99,0.03]
[1752114343503,6.28891264,159.01,158.99,0.03]
[1752114343717,50.76433079,159.0,158.93,1e-08]
[1752114343880,52.45166922,158.94,158.93,1e-08]
[1752114344082,59.29182347,158.94,158.93,1e-08]
[1752114344389,71.68693089,158.94,158.93,1e-08]
[1752114344801,39.41831053,158.94,158.93,1e-08]
[1752114344982,1.5233,158.98,158.93,6.26862037]
[1752114345188,0.14216157,158.97,158.95,6.26862036]
[1752114345398,8.21525537,158.98,158.95,6.26862036]
[1752114345586,6.29049506,158.97,158.95,6.26862036]
[1752114346097,6.29049506,158.97,158.93,25.72862037]
[1752114347314,6.29049506,158.97,158.94,6.26862036]
[1752114348496,6.29049506,158.97,158.93,19.46000001]
[1752114348497,6.29049506,158.97,158.95,6.26862036]
[1752114350015,6.29049506,158.97,158.94,6.26862036]
[1752114352016,6.29049506,158.97,158.93,19.46000001]
[1752114352197,6.29049506,158.97,158.94,6.26862036]
[1752114352516,6.29049506,158.97,158.93,19.46000001]
[1752114352517,6.29049506,158.97,158.95,6.26862036]
[1752114352700,6.28812173,159.03,158.96,32.26862036]
[1752114352883,6.28812173,159.03,159.0,6.26862036]
[1752114353086,6.28812173,159.03,158.99,6.26862036]
[1752114353288,0.14216157,159.02,158.99,6.26862036]
[1752114353709,6.28812173,159.03,158.99,6.26862036]
[1752114354098,0.14216157,159.02,158.99,6.26862036]
[1752114354804,6.43100049,159.02,158.99,6.26862036]
[1752114355208,6.43100049,159.02,159.0,6.26862036]
[1752114355705,6.43100049,159.02,158.97,19.46]
[1752114355915,6.43100049,159.02,158.99,6.26862036]
[1752114356310,6.43100049,159.02,158.98,6.26862036]
[1752114357515,6.43100049,159.02,158.97,19.46]
[1752114357715,6.43100049,159.02,158.98,6.26862036]
[1752114358913,6.43100049,159.02,158.99,6.26862036]
[1752114359916,6.43100049,159.02,159.0,6.26862036]
[1752114360111,6.43100049,159.02,158.99,6.26862036]
[1752114363006,6.28883892,159.02,159.0,6.26862036]
[1752114363321,6.34883892,159.02,159.0,6.26862036]
[1752114364120,6.28930817,159.0,158.97,19.46]
[1752114364305,6.28930817,159.0,158.98,6.26862036]
[1752114365419,6.28930817,159.0,158.97,19.44]
[1752114365606,6.28930817,159.0,158.98,6.26862036]
[1752114366818,6.28930817,159.0,158.99,6.26862036]
[1752114367024,6.28901719,159.01,158.99,6.26862036]
[1752114367200,0.06,159.02,158.97,19.44]
[1752114367518,0.06,159.02,159.01,6.26862036]
[1752114367699,0.06,159.02,159.01,25.76862036]
[1752114368207,0.06,159.02,159.01,19.5]
[1752114368406,0.06,159.04,159.03,26.0]
[1752114368613,0.06,159.04,159.03,44.64964886]
[1752114368930,0.06,159.04,159.03,38.53724072]
[1752114369137,0.06,159.04,159.03,26.0]
[1752114369298,0.06,159.04,159.03,58.31724072]
[1752114369810,6.3094,159.18,159.07,26.0]
[1752114369811,7.93727215,159.16,159.07,26.0]
[1752114370024,0.1,159.16,159.15,6.26862036]
[1752114370329,0.1,159.16,159.15,26.04862036]
[1752114371119,0.1,159.16,159.15,19.78]
[1752114371325,0.1,159.16,159.15,26.04862036]
[1752114372221,6.38298567,159.16,159.15,19.78]
[1752114372524,6.38298567,159.16,159.15,26.04862036]
[1752114372828,6.38298567,159.16,159.15,19.78]
[1752114373120,6.38298567,159.16,159.15,26.22862036]
[1752114373306,6.38298567,159.16,159.15,19.96]
[1752114373709,6.38298567,159.16,159.14,6.26862036]
[1752114374020,6.38298567,159.16,159.15,19.96]
[1752114374206,6.38298567,159.16,159.15,26.22862036]
[1752114376006,6.38298567,159.16,159.15,19.96]
[1752114377818,0.1,159.16,159.15,26.22862036]
[1752114378621,0.1,159.16,159.15,19.96]
[1752114379005,0.1,159.16,159.15,26.22862036]
[1752114381009,6.27825213,159.28,159.22,26.0]
[1752114381212,6.224,159.33,159.23,20.0]
[1752114381424,15.69184244,159.32,159.28,6.26862036]
[1752114381725,6.2770239,159.32,159.28,32.53724072]
[1752114381918,6.27710872,159.31,159.28,32.53724072]
[1752114382319,5.3968082,159.34,159.28,32.53724072]
[1752114382320,5.3968082,159.34,159.28,46.0]
[1752114382522,5.3968082,159.34,159.28,12.53724072]
[1752114382706,5.3968082,159.34,159.28,58.53724072]
[1752114382907,15.69106465,159.33,159.28,52.26862036]
[1752114383107,5.3968082,159.34,159.23,6.4369]
[1752114383108,145.45535199,159.29,159.23,6.4369]
[1752114383324,145.45535199,159.29,159.27,32.26862036]
[1752114383538,145.45536227,159.29,159.28,26.26862036]
[1752114383726,139.177494,159.29,159.28,26.26862036]
[1752114384109,139.177494,159.29,159.28,32.53724072]
[1752114384423,139.177494,159.29,159.28,20.0]
[1752114385039,145.45535199,159.29,159.28,30.40699002]
[1752114385335,139.177494,159.29,159.28,30.40699002]
[1752114386235,139.177494,159.29,159.28,20.0]
[1752114386437,145.45535199,159.29,159.28,20.0]
[1752114386609,145.51535199,159.29,159.28,20.46]
[1752114386810,139.237494,159.29,159.28,30.86699002]
[1752114388120,145.51535199,159.29,159.28,30.86699002]
[1752114389317,145.51535199,159.29,159.28,20.46]
[1752114389620,145.51535199,159.29,159.28,20.52]
[1752114390241,139.237494,159.29,159.28,30.92699002]
[1752114390820,139.237494,159.29,159.28,31.07119002]
[1752114392320,139.237494,159.29,159.28,36.55119002]
[1752114392528,139.237494,159.29,159.28,31.05119002]
[1752114392836,139.237494,159.29,159.28,57.03119002]
[1752114393634,139.237494,159.29,159.28,82.10125258]
[1752114393951,139.237494,159.29,159.28,92.5082426]
[1752114394128,139.237494,159.29,159.28,82.10125258]
[1752114394641,28.66318264,159.29,159.28,92.5082426]
[1752114395522,10.80574589,159.29,159.28,100.6424426]
[1752114395841,5.3968082,159.34,159.33,18.64964886]
[1752114396149,5.3968082,159.34,159.33,56.98915159]
[1752114397149,5.3968082,159.34,159.33,75.63880045]
[1752114397350,0.12696472,159.4,159.33,75.63880045]